bitfinex/quotes_ETHUSD_20250730
["timestamp","ask_amount","ask_price","bid_price","bid_amount"]
[1753900637636,0.04,3805.9,3804.6,2.6283972]
[1753900637870,0.04,3805.9,3805.3,0.1312]
[1753900638091,0.04,3805.9,3805.3,2.75908542]
[1753900638297,0.04,3805.9,3805.7,0.8256]
[1753900638473,0.04,3805.9,3805.8,0.1312]
[1753900638770,0.04,3805.9,3805.7,0.8256]
[1753900638771,0.04,3805.9,3805.7,0.9568]
[1753900639174,0.04,3805.9,3805.7,0.8256]
[1753900640579,0.04,3805.9,3805.8,2.65384412]
[1753900640776,4.277,3807.7,3805.9,0.8104]
[1753900640981,0.7521,3808.3,3806.4,2.62713801]
[1753900641152,3.0,3807.7,3806.4,2.62713801]
[1753900641556,4.277,3807.8,3806.5,0.02627085]
[1753900641793,3.0,3807.7,3806.3,2.62717321]
[1753900642276,4.277,3807.8,3806.5,0.7563]
[1753900642585,0.55,3807.6,3805.1,0.7563]
[1753900642765,0.55,3806.8,3805.1,0.7563]
[1753900642966,0.55,3806.8,3805.3,2.62785739]
[1753900642967,0.57623655,3806.8,3805.3,2.62785739]
[1753900643177,0.57623655,3806.8,3805.1,0.7563]
[1753900643178,0.55,3806.8,3805.7,2.62762174]
[1753900643483,2.66545577,3808.9,3805.8,0.02627568]
[1753900643684,4.278,3807.6,3805.9,0.8119]
[1753900643981,3.0,3807.5,3805.9,3.43938947]
[1753900644189,3.02623655,3807.5,3806.1,2.62729345]
[1753900644479,3.02623655,3807.5,3806.0,2.62742418]
[1753900644681,0.7594,3807.4,3805.9,0.8119]
[1753900644856,0.7594,3807.4,3806.0,0.0262743]
[1753900645197,0.7594,3807.4,3805.9,0.8119]
[1753900645348,0.7594,3807.4,3806.0,2.6273814]
[1753900645688,3.55,3807.5,3805.9,0.8119]
[1753900645689,3.0,3807.5,3805.9,0.83817499]
[1753900645886,3.0,3807.5,3805.9,0.8119]
[1753900646372,0.02623655,3806.8,3805.9,0.8119]
[1753900646681,0.02623655,3806.8,3805.2,4.279]
[1753900646682,0.55,3806.7,3805.1,2.62805182]
[1753900646881,3.55,3806.5,3805.0,0.8107]
[1753900647245,3.55,3806.5,3805.1,2.62805182]
[1753900647446,0.7587,3806.8,3805.4,6.0332891]
[1753900647852,3.7587,3806.8,3805.5,0.02627775]
[1753900648052,3.7587,3806.8,3805.4,6.0332891]
[1753900648053,3.7587,3806.8,3805.6,2.62769819]
[1753900648258,4.319,3806.9,3805.4,6.0332891]
[1753900648451,0.04,3806.9,3806.6,6.0332891]
[1753900648652,0.04,3807.9,3806.9,2.62680921]
[1753900648952,0.04,3808.9,3806.4,2.62712078]
[1753900648953,0.04,3808.9,3808.8,2.62549884]
[1753900649152,0.13715264,3809.2,3809.1,3.44379206]
[1753900649153,0.09510078,3809.2,3809.1,3.44379206]
[1753900649355,0.145246,3809.9,3809.2,3.0]
[1753900649674,1e-08,3809.9,3809.8,0.1312]
[1753900649879,0.1312,3811.1,3809.8,0.1312]
[1753900650053,0.1312,3811.1,3810.3,2.62440663]
[1753900650253,0.8139,3811.5,3810.4,0.1312]
[1753900650475,0.1712,3810.9,3810.4,0.1312]
[1753900650679,0.04,3810.9,3810.4,0.1312]
[1753900650879,0.04,3810.9,3810.3,0.8185]
[1753900651078,0.04,3810.9,3810.6,0.1312]
[1753900651284,0.04,3810.9,3810.3,0.8185]
[1753900651486,0.04,3810.9,3810.5,2.62432751]
[1753900651690,0.04,3810.9,3810.8,0.1312]
[1753900651888,0.04,3810.9,3810.2,0.1312]
[1753900651889,0.1312,3810.8,3810.2,0.1312]
[1753900652089,0.1712,3810.9,3810.4,0.1312]
[1753900652399,1.3097,3810.8,3809.5,0.8153]
[1753900652556,1.3097,3810.8,3809.7,0.1312]
[1753900652557,0.1312,3810.3,3809.7,0.1312]
[1753900652756,0.55,3809.9,3809.0,0.8096]
[1753900652957,0.1312,3809.5,3809.0,0.1312]
[1753900653253,0.1312,3809.5,3808.2,0.7935]
[1753900653254,0.57623655,3809.4,3808.2,0.7935]
[1753900653458,0.57623655,3809.4,3808.1,0.04]
[1753900653459,0.02623655,3809.3,3808.1,0.04]
[1753900653692,0.1312,3808.5,3808.1,0.04]
[1753900654685,0.02623655,3808.4,3808.1,0.04]
[1753900655001,0.1312,3808.3,3808.1,0.04]
[1753900655498,0.55,3808.2,3808.1,0.04]
[1753900655697,1.31812,3808.2,3808.1,0.04]
[1753900656000,7.9611,3808.3,3808.1,0.04]
[1753900656417,0.57623655,3808.2,3808.1,0.04]
[1753900656563,0.55,3808.2,3808.1,0.04]
[1753900657107,3.57623655,3808.2,3808.1,0.04]
[1753900657306,3.55,3808.2,3808.1,0.04]
[1753900657608,4.71422655,3808.2,3808.1,0.04]
[1753900657917,37.34013905,3808.2,3808.1,0.04]
[1753900658076,35.45339,3808.2,3808.1,0.04]
[1753900658280,38.0793025,3808.2,3808.1,0.04]
[1753900658723,5.45339,3808.2,3808.1,0.04]
[1753900658868,34.3154,3807.2,3807.1,0.04]
[1753900659066,41.17366461,3807.2,3807.1,0.04]
[1753900659301,1.3154,3807.2,3807.1,0.04]
[1753900660102,34.34163655,3807.2,3807.1,0.04]
[1753900660400,8.6074,3807.2,3807.1,0.04]
[1753900660603,3.7654,3807.2,3807.1,0.04]
[1753900660803,4.292,3807.4,3807.1,0.04]
[1753900661010,4.294,3807.4,3807.1,0.04]
[1753900661325,0.825,3807.9,3807.1,0.04]
[1753900661771,4.297,3808.1,3807.1,0.04]
[1753900661772,3.0,3808.0,3807.1,2.66662088]
[1753900661971,3.0,3808.0,3807.1,0.04]
[1753900663420,0.55,3807.9,3807.1,0.04]
[1753900663573,4.294,3808.7,3807.3,0.8174]
[1753900663894,4.7234,3808.7,3807.3,0.8174]
[1753900664069,4.294,3808.7,3807.4,0.02626464]
[1753900664404,0.55,3808.6,3807.4,0.02626464]
[1753900664584,0.02623655,3808.5,3807.3,0.8174]
[1753900664781,3.55,3808.6,3807.4,0.02626464]
[1753900664998,3.55,3808.6,3807.4,2.62644567]
[1753900665300,3.55,3808.6,3807.3,0.8174]
[1753900665716,3.55,3808.6,3807.4,2.62641657]
[1753900665910,3.55,3808.6,3807.3,0.8174]
[1753900665911,3.55,3808.6,3807.3,3.44393098]
[1753900666116,3.55,3808.6,3807.3,0.8174]
[1753900666117,0.02623655,3808.5,3807.3,0.8174]
[1753900666313,1.3367,3808.3,3807.1,0.04]
[1753900666520,0.1312,3807.2,3807.1,0.04]
[1753900667401,0.1312,3807.5,3807.1,0.04]
[1753900667723,0.55,3807.4,3807.1,0.04]
[1753900667923,0.1312,3807.2,3807.1,0.04]
[1753900668118,1.4723,3807.2,3807.1,0.04]
[1753900669119,7.9732,3807.2,3807.1,0.04]
[1753900670405,4.4222,3807.2,3807.1,0.04]
[1753900670607,4.9722,3807.2,3807.1,0.04]
[1753900670811,4.9722,3807.2,3807.1,0.041]
[1753900671488,8.46942,3807.2,3807.1,0.041]
[1753900672511,0.55,3806.3,3806.1,0.04]
[1753900672687,7.86723655,3806.2,3806.1,0.04]
[1753900672889,37.9722,3806.2,3806.1,0.04]
[1753900673114,0.55,3805.3,3804.4,0.001]
[1753900673314,5.63163655,3805.2,3804.4,0.001]
[1753900673591,4.3134,3805.2,3804.4,0.001]
[1753900674112,4.33963655,3805.2,3804.4,0.001]
[1753900674315,4.3134,3805.2,3804.4,0.001]
[1753900674829,0.7768,3806.9,3804.6,0.8013]
[1753900675035,30.0,3806.5,3804.7,2.65460347]
[1753900675327,30.0,3806.4,3804.6,0.8013]
[1753900675513,3.55,3806.1,3804.4,0.001]
[1753900675825,0.55,3805.4,3804.4,0.001]
[1753900676026,0.02623655,3805.3,3804.4,0.001]
[1753900676225,3.55,3805.2,3804.4,0.001]
[1753900676447,4.36153655,3805.2,3804.4,0.001]
[1753900676899,1.3353,3805.2,3804.4,0.001]
[1753900677229,7.858,3805.2,3804.4,0.001]
[1753900677822,3.55,3805.5,3804.4,0.001]
[1753900678130,0.02623655,3805.4,3804.4,0.001]
[1753900678330,3.55,3805.5,3804.4,0.001]
[1753900678331,30.0,3805.3,3804.4,0.001]
[1753900678535,33.57623655,3805.2,3804.4,0.001]
[1753900678693,40.42826461,3805.2,3804.4,0.001]
[1753900679130,7.858,3805.2,3804.4,0.001]
[1753900679293,7.858,3805.2,3804.4,2.62952497]
[1753900679623,3.55,3805.2,3804.4,0.001]
[1753900679825,3.55,3805.2,3804.4,2.62947069]
[1753900679991,3.55,3805.2,3804.4,0.001]
[1753900680590,0.8206,3805.8,3804.4,0.001]
[1753900680793,0.55,3805.6,3804.7,0.7721]
[1753900681027,3.55,3805.6,3804.7,0.7721]
[1753900681955,0.55,3805.6,3804.7,0.7721]
[1753900682153,0.7906,3807.1,3805.2,0.02627982]
[1753900682315,4.307,3807.0,3805.4,0.7541]
[1753900682514,4.307,3807.0,3805.5,0.02627775]
[1753900682852,3.0,3806.9,3805.6,2.62767031]
[1753900683149,0.1312,3806.3,3805.8,0.1312]
[1753900683954,4.862,3806.2,3805.1,0.04]
[1753900684246,0.1312,3805.9,3805.3,0.1312]
[1753900684393,4.312,3806.2,3805.6,2.62767442]
[1753900684593,4.312,3806.2,3805.1,0.04]
[1753900684594,0.1312,3806.3,3805.9,2.6274994]
[1753900684839,0.7926,3807.6,3806.3,2.62721996]
[1753900685128,0.1312,3807.2,3806.8,0.8107]
[1753900685332,0.1312,3807.5,3806.8,3.43756814]
[1753900685506,0.1312,3807.5,3807.0,0.1312]
[1753900685896,0.1312,3807.1,3806.3,0.1312]
[1753900686204,0.1312,3807.1,3806.1,0.1312]
[1753900686205,0.55,3806.8,3806.1,0.1312]
[1753900686519,4.4472,3807.1,3806.5,0.1312]
[1753900686897,0.1312,3807.1,3806.6,2.62701623]
[1753900687097,0.1312,3807.1,3806.5,0.1312]
[1753900687306,0.1312,3807.1,3806.5,2.7582798]
[1753900687641,0.55,3807.7,3806.4,0.7711]
[1753900687642,0.1312,3807.3,3806.8,2.75802495]
[1753900687845,0.04,3807.9,3806.4,0.7711]
[1753900687846,0.1312,3807.8,3807.0,0.1312]
[1753900688057,0.04,3807.9,3806.6,3.0]
[1753900688220,0.1312,3807.5,3806.9,0.1312]
[1753900688424,0.1712,3807.9,3807.0,2.62667372]
[1753900688725,0.04,3807.9,3807.4,0.1312]
[1753900689370,0.04,3807.9,3807.6,0.1312]
[1753900690005,0.04,3807.9,3807.6,2.75750725]
[1753900690207,0.04,3807.9,3807.6,0.15746326]
[1753900690455,0.04,3807.9,3807.8,0.1312]
[1753900691408,0.04,3807.9,3807.6,2.65252217]
[1753900691656,0.04,3807.9,3807.8,0.1312]
[1753900693518,0.04,3807.9,3807.8,2.75738835]
[1753900693859,0.04,3807.9,3807.8,0.15746188]
[1753900694076,0.04,3807.9,3807.8,2.75738835]
[1753900694215,0.04,3807.9,3807.8,0.1312]
[1753900694574,0.04,3807.9,3807.8,3.58608835]
[1753900695063,0.04,3807.9,3807.8,3.61235023]
[1753900695562,0.04,3807.9,3807.8,3.58608835]
[1753900695911,0.04,3807.9,3807.8,0.9599]
[1753900696524,0.04,3807.9,3807.2,3.40257751]
[1753900696727,0.04,3807.9,3807.5,0.1312]
[1753900696969,0.04,3807.9,3807.6,0.02626326]
[1753900697138,0.04,3807.9,3807.8,2.75738835]
[1753900697336,0.04,3807.9,3807.8,2.78365023]
[1753900697534,0.04,3807.9,3807.8,3.57635023]
[1753900697972,0.04,3807.9,3807.8,0.9239]
[1753900698464,0.04,3807.9,3807.2,3.4192769]
[1753900698666,0.04,3807.9,3807.3,3.0]
[1753900698970,0.04,3807.9,3807.7,0.1312]
[1753900700651,0.02623655,3807.8,3806.6,0.8064]
[1753900700818,0.1312,3807.8,3807.2,0.1312]
[1753900701779,0.1312,3807.3,3806.5,0.1312]
[1753900701925,0.1312,3807.0,3806.5,0.1312]
[1753900702258,0.1312,3807.0,3806.4,0.1312]
[1753900703353,0.55,3806.8,3805.1,0.8306]
[1753900703560,0.02623655,3806.7,3805.1,3.45861969]
[1753900703743,0.1312,3806.0,3805.5,0.1312]
[1753900704146,0.02623655,3805.9,3805.5,0.1312]
[1753900704345,0.1312,3805.8,3805.3,0.1312]
[1753900704872,3.55,3806.5,3805.1,3.45859837]
[1753900705073,0.1312,3806.0,3805.5,0.1312]
[1753900705430,3.55,3806.8,3805.1,0.85688051]
[1753900705630,0.7606,3806.9,3805.9,0.1312]
[1753900705830,0.1312,3807.0,3806.4,0.1312]
[1753900706469,0.02623655,3806.9,3805.5,4.297]
[1753900706674,0.8197,3806.4,3805.9,0.1312]
[1753900706872,0.1312,3806.0,3805.5,0.1312]
[1753900707100,0.8197,3806.4,3805.3,2.62790748]
[1753900707258,0.1312,3806.3,3805.8,0.1312]
[1753900707576,0.1312,3806.3,3805.1,0.8306]
[1753900707577,0.57623655,3806.2,3805.1,0.041]
[1753900707747,0.1312,3805.5,3805.1,0.041]
[1753900708072,0.6812,3805.2,3805.1,0.041]
[1753900709089,0.1312,3805.2,3805.1,0.041]
[1753900709458,0.1312,3805.5,3805.1,0.041]
[1753900709783,0.55,3805.2,3805.1,0.041]
[1753900709945,1.3741,3805.2,3805.1,0.041]
[1753900710591,0.1312,3805.3,3805.1,0.041]
[1753900710893,0.1312,3805.4,3805.1,0.041]
[1753900711094,0.76,3805.6,3805.1,0.06728051]
[1753900711302,0.1312,3805.8,3805.2,0.1312]
[1753900711649,0.1312,3805.5,3805.1,0.041]
[1753900712052,0.02623655,3805.9,3805.1,0.041]
[1753900712286,0.1312,3805.2,3805.1,0.041]
[1753900712761,0.55,3806.0,3805.1,0.041]
[1753900712985,0.1312,3805.6,3805.1,0.1722]
[1753900713198,0.1312,3805.2,3805.1,0.041]
[1753900714294,0.8,3806.2,3805.1,0.041]
[1753900714483,0.1312,3805.7,3805.1,0.1722]
[1753900714990,0.02623655,3805.6,3805.1,0.041]
[1753900715154,0.1312,3805.2,3805.1,0.041]
[1753900715360,3.0,3806.1,3805.1,0.041]
[1753900715560,0.1312,3805.6,3805.1,0.041]
[1753900716202,3.0,3806.2,3805.3,0.1312]
[1753900716493,3.0,3806.2,3805.1,0.8023]
[1753900716494,0.1312,3805.6,3805.1,0.041]
[1753900717068,0.80563655,3805.5,3805.1,0.041]
[1753900717275,0.1312,3805.2,3805.1,0.041]
[1753900717871,0.6812,3805.2,3805.1,0.041]
[1753900718273,3.6812,3805.2,3805.1,0.041]
[1753900718497,4.58582021,3805.2,3805.1,0.041]
[1753900719199,1.00958366,3805.2,3805.1,0.041]
[1753900719399,3.0,3806.0,3805.1,0.041]
[1753900719603,0.1312,3805.3,3805.1,0.041]
[1753900719791,0.7921,3806.0,3805.1,0.041]
[1753900719989,0.02623655,3805.9,3805.2,0.1312]
[1753900720188,0.02623655,3805.9,3805.1,0.041]
[1753900720189,0.1312,3805.2,3805.1,0.041]
[1753900720487,1.4986,3805.2,3805.1,0.041]
[1753900720903,1.64846,3805.2,3805.1,0.041]
[1753900721408,5.1159,3805.7,3805.1,0.041]
[1753900721616,3.8199,3806.2,3805.1,0.1722]
[1753900721906,0.1312,3805.6,3805.1,0.1722]
[1753900722137,0.8199,3806.2,3805.2,0.02627982]
[1753900722273,0.1312,3806.2,3805.5,0.1312]
[1753900722477,0.1312,3806.2,3805.7,0.1312]
[1753900723570,0.779,3806.7,3805.7,0.1312]
[1753900723774,0.1312,3806.7,3806.1,0.1312]
[1753900723974,4.292,3807.2,3806.1,0.8062]
[1753900724275,3.1312,3807.1,3806.5,0.1312]
[1753900724684,4.292,3807.2,3806.1,0.8062]
[1753900724974,0.1312,3807.5,3807.0,0.1312]
[1753900725196,0.042,3807.9,3807.1,2.65288479]
[1753900725410,0.042,3807.9,3806.5,0.02627085]
[1753900725813,0.042,3807.9,3807.2,0.1312]
[1753900726025,0.1312,3807.7,3807.2,0.1312]
[1753900726189,0.1312,3807.4,3806.8,0.1312]
[1753900726526,0.02623655,3807.3,3806.0,0.829]
[1753900726690,1.3808,3807.8,3806.0,0.829]
[1753900726691,0.1312,3807.0,3806.0,0.829]
[1753900726887,0.1312,3806.7,3806.1,0.1312]
[1753900727088,0.1312,3806.9,3806.1,2.62735924]
[1753900727408,0.02623655,3806.8,3806.0,0.829]
[1753900727609,0.55,3807.1,3805.6,0.8018]
[1753900727940,0.1312,3806.3,3805.6,0.8018]
[1753900728107,0.1312,3806.3,3805.6,0.933]
[1753900728288,0.1312,3806.3,3805.6,3.5607022]
[1753900728492,0.1312,3806.3,3805.6,0.933]
[1753900728991,0.1312,3805.8,3805.1,3.8129]
[1753900729311,0.1312,3805.8,3805.3,0.1312]
[1753900729712,0.772,3806.1,3805.1,0.8129]
[1753900729713,0.02623655,3805.7,3805.1,0.041]
[1753900729891,0.02623655,3805.9,3805.1,0.041]
[1753900730092,0.55,3806.0,3805.1,0.041]
[1753900730331,0.1312,3805.5,3805.1,0.041]
[1753900730823,0.1312,3805.4,3805.1,0.041]
[1753900731526,0.55,3806.3,3805.1,0.041]
[1753900731723,0.7622,3806.5,3805.2,0.15747982]
[1753900731889,0.7622,3806.5,3805.1,0.041]
[1753900732091,0.1312,3806.4,3805.8,0.1312]
[1753900732400,0.1312,3806.4,3805.7,0.1312]
[1753900732790,0.02623655,3806.7,3805.1,2.66901454]
[1753900733015,0.1312,3805.9,3805.4,0.1312]
[1753900734200,0.55,3806.8,3805.3,2.6278469]
[1753900734398,0.1312,3806.2,3805.7,0.1312]
[1753900735098,0.02623655,3806.7,3805.1,0.041]
[1753900735401,0.1312,3805.9,3805.4,0.1312]
[1753900735599,0.1312,3805.4,3805.1,0.041]
[1753900735910,0.57623655,3805.7,3805.1,0.041]
[1753900736115,0.1312,3805.2,3805.1,0.041]
[1753900736629,0.6812,3805.2,3805.1,0.041]
[1753900736801,34.53403655,3805.2,3805.1,0.041]
[1753900737167,37.13578276,3805.2,3805.1,0.041]
[1753900737639,41.42678276,3805.2,3805.1,0.041]
[1753900737839,41.36906461,3805.2,3805.1,0.041]
[1753900738012,43.99704737,3805.2,3805.1,0.041]
[1753900738533,41.36906461,3805.2,3805.1,0.041]
[1753900738899,11.36906461,3805.2,3805.1,0.041]
[1753900739102,8.7988,3805.2,3805.1,0.041]
[1753900739600,0.9578,3805.2,3805.1,0.041]
[1753900739826,0.1312,3805.2,3805.1,0.041]
[1753900740242,0.1312,3805.4,3805.1,0.041]
[1753900740438,0.57623655,3805.3,3805.1,0.041]
[1753900740607,1.51483655,3805.2,3805.1,0.041]
[1753900740948,1.66632021,3805.2,3805.1,0.041]
[1753900741154,0.9386,3805.2,3805.1,0.041]
[1753900741323,1.4886,3805.2,3805.1,0.041]
[1753900741952,2.8223841,3807.1,3805.1,0.041]
[1753900741953,0.1312,3805.4,3805.1,0.041]
[1753900742161,4.293,3805.9,3805.1,0.041]
[1753900742318,0.1312,3805.7,3805.2,0.1312]
[1753900742655,0.1312,3806.3,3805.8,2.62756353]
[1753900742858,2.50463187,3807.5,3806.3,0.8146]
[1753900743057,0.1312,3806.9,3806.3,0.8146]
[1753900743361,2.50463187,3807.5,3806.3,0.8146]
[1753900743362,0.1312,3807.1,3806.6,0.1312]
[1753900743749,1.70353187,3807.5,3806.7,6.03221593]
[1753900743923,0.1312,3807.3,3806.7,6.03221593]
[1753900744118,0.002,3807.8,3806.9,0.7567]
[1753900744466,0.002,3807.8,3807.7,3.44365732]
[1753900744948,0.002,3807.8,3807.7,3.57485732]
[1753900745114,0.002,3807.8,3807.7,3.60111989]
[1753900745562,0.002,3807.8,3807.7,3.57485732]
[1753900745859,0.002,3807.8,3807.7,0.9486]
[1753900746081,0.002,3807.8,3807.5,0.1312]
[1753900746371,0.002,3807.8,3807.3,0.1312]
[1753900746521,0.002,3807.8,3807.2,0.7537]
[1753900746726,0.1312,3807.6,3807.2,0.7537]
[1753900747749,0.1312,3807.6,3807.2,3.38024986]
[1753900748089,0.002,3807.8,3807.3,2.62653323]
[1753900748366,0.002,3807.8,3807.2,0.7537]
[1753900748581,0.1312,3807.7,3807.2,0.8849]
[1753900749145,0.1312,3807.7,3807.2,0.7537]
[1753900749769,0.002,3807.8,3807.3,2.65279856]
[1753900749957,0.002,3807.8,3807.3,2.75772726]
[1753900750157,0.002,3807.8,3807.3,0.1312]
[1753900750354,0.002,3807.8,3806.7,3.0]
[1753900750568,0.1312,3807.5,3807.0,0.1312]
[1753900750880,0.1312,3807.5,3806.8,0.1312]
[1753900751085,0.002,3807.8,3806.8,6.03221593]
[1753900751238,0.002,3807.8,3807.6,0.1312]
[1753900751642,0.002,3807.8,3807.5,0.1312]
[1753900751957,0.002,3807.8,3807.7,8.65847325]
[1753900752217,0.002,3807.8,3807.7,9.61977325]
[1753900752370,0.04,3808.9,3808.8,2.62549884]
[1753900752566,0.04,3808.9,3808.0,2.65226283]
[1753900752768,0.04,3808.9,3808.0,4.292]
[1753900752953,0.04,3808.9,3808.1,2.62598146]
[1753900753165,0.04,3808.9,3808.0,2.62604501]
[1753900753375,0.04,3808.9,3807.8,5.1011]
[1753900753537,0.04,3808.9,3807.9,0.02626119]
[1753900753740,0.04,3808.9,3808.1,2.62591391]
[1753900753994,0.04,3808.9,3807.8,3.8091]
[1753900754144,0.04,3808.9,3806.1,2.62730996]
[1753900754145,0.7624,3808.8,3807.6,3.0]
[1753900754340,0.57623655,3808.7,3807.3,3.8058]
[1753900754660,0.55,3808.5,3806.8,0.7755]
[1753900754856,0.13786366,3808.6,3806.1,0.04]
[1753900754857,3.55,3808.1,3806.1,0.04]
[1753900755057,0.55,3807.4,3806.1,0.04]
[1753900755384,0.55,3806.9,3806.1,0.04]
[1753900755683,0.55,3806.2,3806.1,0.04]
[1753900756085,0.71309655,3806.2,3806.1,0.04]
[1753900756298,38.00909655,3806.2,3806.1,0.04]
[1753900756456,37.98286,3806.2,3806.1,0.04]
[1753900757249,41.42895231,3806.2,3806.1,0.04]
[1753900757543,0.8039,3806.1,3805.1,0.041]
[1753900757743,6.98188276,3805.2,3805.1,0.041]
[1753900757982,41.27888276,3805.2,3805.1,0.041]
[1753900758276,38.6509,3805.2,3805.1,0.041]
[1753900758497,41.27888276,3805.2,3805.1,0.041]
[1753900758690,33.94965904,3804.8,3804.7,0.001]
[1753900758856,36.94965904,3804.8,3804.7,0.001]
[1753900759965,34.3798,3804.5,3804.4,0.001]
[1753900760301,4.3798,3804.5,3804.4,0.001]
[1753900760464,34.3798,3804.5,3804.4,0.001]
[1753900760659,36.95006461,3804.5,3804.4,0.001]
[1753900761076,36.95006461,3804.5,3804.1,0.04]
[1753900761077,33.17867357,3804.2,3804.1,0.04]
[1753900761302,36.93107357,3804.2,3804.1,0.04]
[1753900761605,4.3024,3804.2,3804.1,0.04]
[1753900761911,8.6034,3804.2,3804.1,0.04]
[1753900762072,4.3024,3804.2,3804.1,0.04]
[1753900762299,8.6034,3804.2,3804.1,0.04]
[1753900762502,12.85511357,3804.2,3804.1,0.04]
[1753900762713,2.62888088,3803.9,3803.8,0.001]
[1753900762914,33.70743655,3803.9,3803.8,0.001]
[1753900763137,37.09378088,3803.9,3803.8,0.001]
[1753900763508,7.09378088,3803.9,3803.8,0.001]
[1753900763817,37.03516461,3803.9,3803.8,0.001]
[1753900763992,41.33616461,3803.9,3803.8,0.001]
[1753900764330,8.7659,3803.9,3803.8,0.001]
[1753900764493,0.9149,3803.9,3803.8,0.001]
[1753900764691,5.2149,3803.9,3803.8,0.001]
[1753900765229,38.7649,3803.9,3803.8,0.001]
[1753900766529,8.2129,3803.9,3803.8,0.001]
[1753900766895,0.1312,3803.9,3803.8,0.001]
[1753900767294,4.4312,3803.9,3803.8,0.001]
[1753900767654,0.8152,3805.4,3803.9,0.7671]
[1753900767815,4.299,3805.3,3804.1,2.62873098]
[1753900768232,4.3,3805.3,3803.9,0.7671]
[1753900768435,0.8034,3805.9,3803.9,0.7671]
[1753900768636,4.304,3805.5,3804.6,2.62835951]
[1753900768837,4.304,3805.5,3804.5,2.62843284]
[1753900769041,4.304,3805.5,3804.2,2.62867357]
[1753900769042,4.304,3805.5,3803.9,0.7671]
[1753900769338,4.304,3805.5,3804.6,2.62834429]
[1753900769646,4.304,3805.5,3803.9,0.7671]
[1753900769935,4.304,3805.5,3804.0,0.02628811]
[1753900770145,4.304,3805.5,3804.1,2.62873252]
[1753900770146,0.02623655,3805.4,3804.1,2.62873252]
[1753900770341,0.55,3805.3,3803.9,0.7671]
[1753900770551,0.02623655,3805.2,3803.9,0.7671]
[1753900770856,0.55,3805.3,3803.8,0.001]
[1753900771091,0.8034,3805.9,3803.8,0.001]
[1753900771201,4.299,3805.2,3804.2,2.62860478]
[1753900771401,4.299,3805.1,3803.8,0.02728949]
[1753900771603,2.02338564,3805.6,3804.9,2.62813657]
[1753900771902,6.32238564,3805.6,3804.7,2.62826401]
[1753900772112,3.55,3805.5,3804.3,2.62855263]
[1753900772322,0.02623655,3805.5,3804.0,0.8325]
[1753900772542,2.02338564,3805.6,3805.4,2.62778106]
[1753900772750,1.52338564,3805.6,3805.5,3.41725333]
[1753900772951,0.04,3806.9,3805.9,0.7632]
[1753900773246,0.04,3806.9,3806.1,5.62736134]
[1753900773420,0.04,3806.9,3806.8,2.62687821]
[1753900773911,0.04,3806.9,3806.1,3.0]
[1753900774111,0.04,3806.9,3806.6,2.62696028]
[1753900774317,0.04,3806.9,3806.8,2.62687821]
[1753900775018,0.04,3806.9,3806.7,2.62694161]
[1753900775561,0.04,3806.9,3806.1,3.0]
[1753900775848,0.04,3806.9,3805.9,0.7632]
[1753900776603,0.55,3806.7,3805.9,0.7632]
[1753900776837,0.02623655,3806.6,3805.3,2.6279013]
[1753900777037,0.55,3806.7,3805.5,3.0]
[1753900777241,4.316,3806.6,3805.5,2.62777558]
[1753900777544,4.316,3806.6,3805.5,0.1312]
[1753900777545,0.1312,3806.1,3805.5,0.1312]
[1753900777747,4.315,3806.6,3806.0,2.62743037]
[1753900777903,0.1312,3806.5,3805.9,2.75868237]
[1753900778108,0.02623655,3806.4,3805.7,0.001]
[1753900778330,0.04,3806.9,3805.7,0.02727637]
[1753900778331,4.314,3806.8,3805.7,0.02727637]
[1753900778511,0.1312,3806.5,3805.9,2.6274994]
[1753900779006,0.1312,3806.5,3805.8,0.1312]
[1753900779233,0.55,3806.7,3805.8,0.1312]
[1753900779462,3.57623655,3806.7,3806.1,0.001]
[1753900779756,0.55,3806.5,3806.1,0.001]
[1753900779916,0.6812,3806.2,3806.1,0.001]
[1753900780121,4.9952,3806.2,3806.1,0.001]
[1753900780543,5.02143655,3806.2,3806.1,0.001]
[1753900780839,4.9932,3806.2,3806.1,0.001]
[1753900781736,6.58129,3806.2,3806.1,0.001]
[1753900782157,9.58129,3806.2,3806.1,0.001]
[1753900782319,17.49339,3806.2,3806.1,0.001]
[1753900782519,17.49339,3806.2,3805.7,0.001]
[1753900782520,49.29858231,3806.2,3805.7,0.001]
[1753900782704,49.29858231,3806.2,3803.7,0.7947]
[1753900782705,6.17783117,3805.5,3803.7,0.7947]
[1753900782908,0.55,3805.1,3803.7,0.7947]
[1753900783150,0.02623655,3805.0,3803.7,0.7947]
[1753900783445,0.55,3805.1,3803.7,0.7947]
[1753900783645,0.55,3804.8,3803.7,0.7947]
[1753900783807,0.57623655,3804.8,3803.2,0.818]
[1753900784007,0.57623655,3804.8,3803.2,3.818]
[1753900784208,4.0646602,3804.8,3803.2,0.818]
[1753900784615,4.03842365,3804.8,3803.2,3.818]
[1753900784823,4.03842365,3804.8,3803.2,0.818]